Cogmind - Beta 16 @@@ ROGUE MODE // 2025.12.07 @ 20:55:17 Player: FrigidRock Result: Destroyed by G-34 Mercenary with Small Laser Performance ------------- Evolutions (0) 0 Regions Visited (1) 200 Robots Destroyed (23) 115 Value Destroyed (559) 559 Prototype IDs (0) 0 Alien Tech Used (0) 0 Bonus (0) 0 TOTAL SCORE: 874 Bonus ------- None Cogmind --------- Core Integrity 0/250 Matter 280/300 Energy 61/100 System Corruption 1% Temperature Cool (6) Movement Walking (120) Location -10/Materials Parts ------- > --- POWER (1) -------- (None) > --- PROPULSION (2) --- Aluminum Leg Aluminum Leg > --- UTILITY (2) ------ Small Storage Unit Improved Terrain Scanner > --- WEAPON (2) ------- (None) > --- INVENTORY (8) ---- Light Ion Engine Aluminum Leg Aluminum Leg Medium Storage Unit Large Storage Unit Peak State ------------ > --- POWER ------------ Ion Engine > --- PROPULSION ------- Aluminum Leg Aluminum Leg > --- UTILITY ---------- Small Storage Unit Improved Terrain Scanner > --- WEAPON ----------- Assault Rifle Assault Rifle > --- INVENTORY -------- (None) [Rating: 9] Favorites ----------- Power Ion Engine Engine Ion Engine Propulsion Aluminum Leg Leg Aluminum Leg Utility Small Storage Unit Device Improved Terrain Scanner Storage Small Storage Unit Weapon Beam Cannon Energy Cannon Beam Cannon Ballistic Gun Assault Rifle Build | -11 -10 ------- Run | Yrd Mat Slots Evolved . | . . Power . | . . Propulsion . | . . Utility . | . . Weapon . | . . Parts Attached 17 | 7 10 Power 4 | 1 3 Engine 4 | 1 3 Core . | . . Reactor . | . . Propulsion 7 | 2 5 Treads . | . . Leg 7 | 2 5 Wheel . | . . Hover . | . . Flight . | . . Utility 2 | 2 . Device 1 | 1 . Storage 1 | 1 . Processor . | . . Hackware . | . . Protection . | . . Artifact . | . . Weapon 4 | 2 2 Energy Gun . | . . Energy Cannon 2 | . 2 Ballistic Gun 2 | 2 . Ballistic Cannon . | . . Launcher . | . . Special Weapon . | . . Impact Weapon . | . . Slashing Weapon . | . . Piercing Weapon . | . . Special Melee Weapon . | . . Unidentified Prototypes . | . . Parts Lost 11 | . 11 Power 3 | . 3 Propulsion 4 | . 4 Utility . | . . Weapon 4 | . 4 Highest Loss Streak 6 | . 6 To Critical Strikes . | . . Average Backups 5 | . 5 Power . | . . Propulsion 2 | . 2 Utility 1 | . 1 Weapon 1 | . 1 Tool/Special . | . . Unused Backups 3 | . 3 Power . | . . Propulsion 1 | . 1 Utility 2 | . 2 Weapon . | . . Tool/Special . | . . Average Slot Usage (%) 96 | . 96 Engine 13 | . 13 Leg 27 | . 27 Device 14 | . 14 Storage 14 | . 14 Energy Cannon 15 | . 15 Ballistic Gun 11 | . 11 Peak Build Rating 9 | 9 9 Average Rating 8 | 5 8 On Entrance 4 | . 9 Avg Prop Armor Cover (%) . | . . Naked Turns . | . . Heaviest Build 17 | 15 17 Greatest Support 20 | 20 20 Greatest Overweight (x) 1 | 1 1 Average Overweight (x) . | . . Largest Inventory Capacity 8 | 8 8 Average Capacity 7 | 6 8 Most Carried 8 | . 8 Average Carried 5 | . 5 Final Capacity 8 | 8 8 Final Carried 5 | . 5 Class Distribution -------------------- 69% | Mutant 30% | Scavenger-Mutant Dominant Class ---------------- Mutant | -10/Materials Resources | -11 -10 ----------- Run | Yrd Mat Matter Collected 560 | 204 356 Remotely . | . . Salvage Created 743 | 67 676 Parts 49 | 8 41 Haulers Intercepted . | . . Recyclers Shooed 1 | . 1 Parts Field Recycled . | . . Retrieved Matter . | . . Parts Self-Destructed . | . . Prevented . | . . Parts Restored . | . . Kills | -11 -10 ------- Run | Yrd Mat Combat Hostiles Destroyed 15 | . 15 Guns 2 | . 2 Cannons 13 | . 13 Classes Destroyed 8 | 1 7 Worker 1 | . 1 Builder 1 | . 1 Tunneler 3 | 3 . Recycler 1 | . 1 Operator 1 | . 1 Watcher 1 | . 1 Swarmer 3 | . 3 Grunt 12 | . 12 Best Kill Streak 4 | 3 4 Combat Bots Only 3 | . 3 Max Kills in Single Turn 1 | 1 1 Gunslinging . | . . Exploded . | . . Melee . | . . Uniques/NPCs Destroyed . | . . Combat | -11 -10 -------- Run | Yrd Mat Hostile Shots Fired 152 | . 152 Missed 35 | . 35 Hits 117 | . 117 Projectile 117 | . 117 Critical Strikes 1 | . 1 Damage Taken 1342 | . 1342 Core 250 | . 250 Absorbed by Shields . | . . Core Remaining (%) 100 | 100 . Volleys Fired 63 | 6 57 Largest 2 | 2 2 Hottest 120 | 40 120 Shots Fired 126 | 12 114 Gun 58 | 12 46 Cannon 68 | . 68 Launcher . | . . Special . | . . Kinetic 58 | 12 46 Thermal 68 | . 68 Explosive . | . . Electromagnetic . | . . Robot Hit Streak 8 | 6 8 Robot Miss Streak 3 | 2 3 Penetration Max . | . . Secondary Targets . | . . Shots Hit Robots 67 | 7 60 Core Hits 30 | 3 27 Critical Kills 1 | . 1 Critical Parts Destroyed . | . . Critical Strikes 1 | . 1 Meltdown 1 | . 1 Melee Attacks . | . . Impact . | . . Slashing . | . . Piercing . | . . Sneak Attacks . | . . Combat Hostiles . | . . Follow-up Attacks . | . . Damage Inflicted 1130 | 86 1044 Guns 381 | 86 295 Cannons 676 | . 676 Explosions 47 | . 47 Melee . | . . Ramming 26 | . 26 Kinetic 381 | 86 295 Thermal 723 | . 723 Explosive . | . . Electromagnetic . | . . Impact . | . . Slashing . | . . Piercing . | . . Highest Corruption 1 | . 1 Average Corruption 1 | . 1 Corruption Purged . | . . Corruption Blocked . | . . Effects 4 | . 4 Message Errors 1 | . 1 Matter Fused 2 | . 2 Misfires 1 | . 1 Overload Shots . | . . Overflow Damage 15 | . 15 Projectiles 15 | . 15 Explosions . | . . Melee . | . . Knockbacks . | . . Impact . | . . Kinetic . | . . Secondary . | . . Self-Inflicted Damage 18 | . 18 Shots 1 | . 1 Rammed . | . . Targets Rammed 5 | . 5 Kicked 5 | . 5 Crushed . | . . Highest Temperature 330 | . 330 Average Temperature 88 | . 88 Received Heat Transfer 633 | . 633 Effects 2 | . 2 Interference 2 | . 2 Siege Activations . | . . Martial Activations . | . . Shielding Activations . | . . Robots Disrupted . | . . Combat Hostiles . | . . Robots Corrupted . | . . Combat Hostiles . | . . Parts Fried . | . . Impact Corruptions . | . . Robots Melted 1 | . 1 Combat Hostiles . | . . Parts Melted 1 | . 1 Heat Transferred 1493 | . 1493 Parts Sabotaged . | . . Parts Stolen . | . . Parts Stripped . | . . Power Chain Reactions . | . . Alert | -11 -10 ------- Run | Yrd Mat Maximum Alert Level . | . . Low Security (%) 100 | 100 100 Level 1 . | . . Level 2 . | . . Level 3 . | . . Level 4 . | . . Level 5 . | . . High Security . | . . Max Security . | . . Peak Influence 161 | 5 161 Initial 3 | . 3 Average 42 | 1 46 Influence Increases 635 | 15 620 Destroy 0b10 Robot/C 300 | . 300 Destroy 0b10 Robot/NC 40 | 15 25 Destroy Leader 72 | . 72 Successful Hack 7 | . 7 Select Force Hacks 60 | . 60 Disable Machine 45 | . 45 Destroy Structure 21 | . 21 Lose Combat Pursuer 90 | . 90 Influence Decreases 573 | 10 563 Entered New Map 2 | . 2 Time Decay 239 | 10 229 Lost Part 110 | . 110 Purge Threat 222 | . 222 Squads Dispatched 5 | . 5 Investigation 4 | . 4 Extermination . | . . Reinforcement 1 | . 1 Assault . | . . Garrison . | . . Intercept . | . . Searches Triggered . | . . Construction Impeded . | . . Haulers Reinforced . | . . Active Scanning Responses . | . . Cargo Convoy Interrupts . | . . Stealth | -11 -10 --------- Run | Yrd Mat Distress Signals . | . . Communications Jammed . | . . Distress Signals . | . . Times Spotted 30 | . 30 Peak Tracking Total 7 | . 7 Tactical Retreats 1 | . 1 Traps | -11 -10 ------- Run | Yrd Mat Traps Triggered 2 | . 2 Indirectly . | . . Trap Hack Attempts . | . . Triggered . | . . Disarmed . | . . Reprogrammed . | . . Reused . | . . Traps Extracted . | . . Installed . | . . Triggered . | . . Machines | -11 -10 ---------- Run | Yrd Mat Machines Disabled 3 | . 3 Max in Single Turn 3 | . 3 Machines Repaired . | . . Machines Dismantled . | . . Machines Sabotaged . | . . Overloaded Fab Kills . | . . Hacking | -11 -10 --------- Run | Yrd Mat Machines Accessed 8 | . 8 Terminals 6 | . 6 Fabricators . | . . Repair Stations . | . . Recycling Units 2 | . 2 Scanalyzers . | . . Garrison Access . | . . Total Hacks 24 | . 24 Successful 14 | . 14 Failed 10 | . 10 Catastrophic 1 | . 1 Database Lockouts . | . . Manual 15 | . 15 Terminals 19 | . 19 Fabricators . | . . Repair Stations . | . . Recycling Units 5 | . 5 Scanalyzers . | . . Garrison Access . | . . Terminal Hacks 6 | . 6 Unreport Threat 4 | . 4 Dispatch Records 1 | . 1 Transport Status 1 | . 1 Fabricator Hacks . | . . Repair Station Hacks . | . . Recycling Unit Hacks . | . . Scanalyzer . | . . Garrison Access Hacks . | . . Unauthorized Hacks 8 | . 8 Terminals 6 | . 6 Botnet 2 | . 2 Skim 4 | . 4 Fabricators . | . . Repair Stations . | . . Recycling Units 2 | . 2 Tunnel 2 | . 2 Scanalyzers . | . . Garrison Access . | . . Data Cores Recovered . | . . Used . | . . Hacking Detections 6 | . 6 Full Trace Events 1 | . 1 Feedback Events . | . . Feedback Blocked . | . . Robot Schematics Acquired . | . . Robots Built . | . . Authchips . | . . Time . | . . Total Robot Build Rating . | . . Part Schematics Acquired . | . . Parts Built . | . . Authchips . | . . Time . | . . Total Part Build Rating . | . . Part Studies Acquired . | . . Parts Repaired . | . . Time . | . . Parts Recycled . | . . Recycled Matter . | . . Retrieved Matter . | . . Retrieved Components . | . . Parts Scanalyzed . | . . Part Schematics Acquired . | . . Parts Damaged . | . . Bothacking | -11 -10 ------------ Run | Yrd Mat Used RIF Installer . | . . Robots Hacked . | . . Non-combat . | . . Combat . | . . Robot Hacks Applied . | . . Relay Couplers Released . | . . Fabnet Peak Effective % . | . . Robots Rewired . | . . Allies Hacked . | . . Hacks Repelled . | . . Allies | -11 -10 -------- Run | Yrd Mat Total Allies . | . . Largest Group . | . . Highest-Rated Group . | . . Highest-Rated Ally . | . . Total Orders . | . . Ally Attacks . | . . Total Damage . | . . Kills . | . . Allies Corrupted . | . . Allies Melted . | . . Intel | -11 -10 ------- Run | Yrd Mat Active Infowar (turns) 824 | 3 821 Terrain 824 | 3 821 Robot Analysis Total . | . . Derelict Logs Recovered . | . . Drone Launches . | . . Drone Recoveries . | . . Exploration | -11 -10 ------------- Run | Yrd Mat Turns Passed 970 | 75 895 Spaces Moved 587 | 43 544 Core 20 | 11 9 Treads . | . . Legs 567 | 32 535 Wheels . | . . Hover . | . . Flight . | . . Fastest Speed 50 | 50 100 Average Speed 119 | 110 120 Slowest Speed 190 | 120 190 Overloaded Moves . | . . Propulsion Burnouts . | . . Robots Hopped . | . . Potential Cave-ins . | . . Cave-ins Triggered . | . . Exploration Rate (%) 42 | 4 80 Regions Visited 1 Branch Regions . Pre-discovered Areas 2 | . 2 Known Exits Taken . | . . Unknown Exits Taken 1 | 1 . Scrap Searched . | . . Spaces Dug . | . . Terrain Destroyed 17 | . 17 Melee . | . . Projectile . | . . AOE 17 | . 17 Terrain Rammed . | . . Walls Destroyed . | . . Machines Disabled . | . . Actions | -11 -10 --------- Run | Yrd Mat Total 724 | 55 669 Wait 39 | . 39 Move 586 | 42 544 Hop . | . . Pick Up 6 | . 6 Fast Attach 10 | 7 3 Attach 8 | . 8 Detach 3 | . 3 Swap 4 | . 4 Drop . | . . Fire 63 | 6 57 Melee . | . . Ram . | . . Kick 5 | . 5 Crush . | . . Escape Stasis . | . . Rewire . | . . Trap . | . . Miscellaneous . | . . Route ------- -11/Scrapyard -10/Materials (discovered 4 exits: [*Mat x2] / [*Min x2]) History --------- Turn | Location | Event 12 | -11/Scrapyard | Discovered new exit (range 15) 76 | -11/Scrapyard | Entered Materials 79 | -10/Materials | Discovered new exit (range 8) 315 | -10/Materials | Build established: Mutant 382 | -10/Materials | Discovered new exit (range 5) 511 | -10/Materials | Discovered new exit (range 15) 641 | -10/Materials | Lost 3 parts (1p1n1w) 806 | -10/Materials | Discovered new exit (range 13) 872 | -10/Materials | Core integrity fell below 50% 946 | -10/Materials | Core integrity fell below 20% 971 | -10/Materials | Destroyed by G-34 Mercenary with Small Laser Last Messages --------------- Terminal linked with 2 systems. Please expand to 2 more systems! >>Alert(Purge) Purged threat record, alert level lowered. >>Alert(Purge) Purged threat record, alert level lowered. 00852_ K-01 Serf cleans the Terminal. 00865_ K-01 Serf cleans the TF Node. 00896_ K-01 Serf collects debris. 00910_ Assault Rifle destroyed. 00931_ G-34 Mercenary destroyed. 00932_ Ion Engine destroyed. 00934_ G-34 Mercenary destroyed. 00937_ Beam Cannon destroyed. 00939_ Aluminum Leg destroyed. 00942_ Kicked G-34 Mercenary out of the way. 00943_ Acquired 10 matter. 00943_ Kicked G-34 Mercenary. 00945_ Assault Rifle destroyed. 00946_ Aluminum Leg destroyed. Map ----- +----------------------------------------------------+ | ??????????###########+### #?#######??????????? | | ?????????????????# #?# #??????????? | | ?????????????????# < #?# #?? ???????? | | ?????????????????# #?? +??????????? | | ?????????????????######## #?? ???????????? | | ????????????????????????## ##?? ? ?????????? | | ??????????????#??#???????# #???# #???????????? | | ?????????????????????????# #???# #???????????? | | ??????????????????????#??# #???# #########???# | | ??????????##?????????????# #???# # ??? | | ??????????????????#????#?# ##??# # """ """ ??? | | ?????????????????#?#????## ##??# # """ """ ##? | | ????????????????????????# #### # """ """ #?? | | ??????????????????????### # #?? | | ?????????????#####?#????# /[= #?? | | ?????????????# T #??????# #%=% #?? | | ????#????????# #? ? ??# #### ###!! #?? | | ?????????????# #??????#g#####??# #?###########?? | | ???????#?????# !#??#???# #??????# #????????????#? | | ??????????#??# #???#??# #??????# #??? ??? ?????? | | #????????????# #??# # # #??????# #?????????????# | | ??????######## ##?# # #??????# ????????????? | | ??????# ###+######+## #??##?#####????????#??#? | | ?#??#?# ^ #?#??????#?????????????? | | ?????## #??????????????#??##???? | | ??????# u @##?????????????????????? | | ??????# ############# ###?#?#########???###### | | ??????## ##?????? ??# ##### ##### | | ######## #???????"" # | | # #???????"" + " < T | | """ # =#???????"" # | | """ # *%##??????? ?# #####" "##### | | """ # =##?##+#?#+### ####?#" !"! "#???## | | #[ ##### ### ### # ??#"""""""#????# | | # ! + ???#########????# "" | | """ + #?????????????##??# "Y | | "T # """ "T" #????????????????## "" | | """ ### #### """ #????????#???????# | | #?# #??# """ # ?????????#?##### | | ##########+#### #????? ??? | | ?????# # ! ! #???????????###### | | ??#??# """= # *#?#??????????????# | | ????## """ = # ###### #?#?#######?#?######### | | ?????# """ # #????# ##### #???# | | ???#?# ==+ ##???# ##### """ | | ??#??# """ ![ # #???## + Y" | | ?????# """ [ *#! ###??# ##??# """ """ | | ###??# """ # = ############## #?#?# """ | | #?#??# #= # !#??# #####???# """ | | #????########## # """ #??# #?##????# | +----------------------------------------------------+ Best States ------------- Heat Dissipation 25 Energy Generation 10 Energy Capacity 250 Matter Stores 300 Matter Capacity 300 Sight Range 16 Terrain Scan Range 16 Terrain Scan Density 10 Evasion (%) 55 Item Schematics ----------------- None Robot Schematics ------------------ None Fabricated ------------ Nothing Repaired ---------- Nothing Studied --------- None Alien Tech Used ----------------- None Achievements -------------- None Challenges ------------ None Game ------ Seed MultitargetingDeuteriumMount Manual? 0 Play Time 00:08:09 Cumulative 459.4 hours Start 2025.12.07 @ 18:40:52 End 2025.12.07 @ 20:55:17 Sessions 2 Manual Loads 0 Difficulty Rogue Special Mode None Game No. 187 Rogue 114 Adventurer 68 Explorer 5 Win Type - Total 36 Types 20/3/3/4/3/0/1/0/0/2 Lore% 81 Gallery% 78 Achievement% 60 Wizard Run 0 Options --------- Layout 0 ASCII 0 Keyboard 0 Movement Numpad Keybinds 0 Fullscreen 1 Font 24/Smallcaps Map View 76x50 Zoom Use 0% Tactical HUD 1 Map Filters NONE Filters NONE Steam 1 RUN: e7cc6783-3ea3-4341-b7cb-2470ed7b6d70